lending/lending_fUSD_20240509
["ID","MTS","AMOUNT","RATE_DAILY","PERIOD"]
[326746701,1715297470673,-500.0,0.00030684,6]
[326746702,1715297470683,-1342.61,0.00030684,6]
[326746703,1715297470692,-743.91,0.00030684,6]
[326746704,1715297470702,-500.0,0.00030684,6]
[326746705,1715297470712,-738.78,0.00030684,6]
[326746706,1715297470721,-268.806236,0.00030684,7]
[326746707,1715297470731,-500.0,0.00030684,6]
[326746708,1715297470740,-500.0,0.00030684,6]
[326746709,1715297470750,-1826.72,0.00030684,6]
[326746710,1715297470759,-268.806236,0.00030684,7]
[326746711,1715297470768,-1576.13,0.00030684,6]
[326746712,1715297470778,-877.9,0.00030684,6]
[326746713,1715297470787,-500.0,0.00030684,6]
[326746714,1715297470797,-500.0,0.00030684,6]
[326746715,1715297470806,-500.0,0.00030684,6]
[326746716,1715297470815,-1244.47,0.00030684,6]
[326746717,1715297470824,-2093.7,0.00030684,6]
[326746718,1715297470834,-616.76,0.00030684,6]
[326746719,1715297470843,-500.0,0.00030684,6]
[326746720,1715297470852,-519.50053941,0.00030684,6]
[326746721,1715297470861,-500.0,0.00030684,6]
[326746722,1715297470870,-500.0,0.00030684,6]
[326746723,1715297470879,-500.0,0.00030684,6]
[326746724,1715297470889,-725.76,0.00030684,6]
[326746725,1715297470898,-500.0,0.00030684,6]
[326746726,1715297470908,-455.35819933,0.00030684,6]
[326746727,1715297470916,-683.02,0.00030684,6]
[326746728,1715297470926,-500.0,0.00030684,6]
[326746729,1715297470936,-1709.75,0.00030684,6]
[326746730,1715297470945,-1020.79,0.00030684,6]
[326746731,1715297470954,-1330.42,0.00030684,6]
[326746732,1715297470964,-885.37,0.00030684,6]
[326746733,1715297470973,-514.87,0.00030684,6]
[326746734,1715297470981,-1007.97,0.00030684,6]
[326746735,1715297470991,-500.0,0.00030684,6]
[326746736,1715297471000,-500.0,0.00030684,6]
[326746737,1715297471010,-151.0,0.00030684,7]
[326746738,1715297471019,-2980.74,0.00030684,6]
[326746739,1715297471029,-2876.72,0.00030684,6]
[326746740,1715297471041,-500.0,0.00030684,6]
[326746741,1715297471050,-500.0,0.00030684,6]
[326746742,1715297471059,-1202.24,0.00030684,6]
[326746743,1715297471068,-500.0,0.00030684,6]
[326746744,1715297471079,-1473.97,0.00030684,6]
[326746745,1715297471088,-535.28,0.00030684,6]
[326746746,1715297471097,-500.0,0.00030684,6]
[326746747,1715297471107,-500.0,0.00030684,6]
[326746748,1715297471116,-538.21,0.00030684,6]
[326746749,1715297471126,-235.171682,0.00030684,7]
[326746750,1715297471135,-2460.69,0.00030684,6]
[326746751,1715297471145,-500.0,0.00030684,6]
[326746752,1715297471155,-500.0,0.00030684,6]
[326746753,1715297471164,-940.88,0.00030684,6]
[326746754,1715297471174,-500.0,0.00030684,6]
[326746755,1715297471183,-235.171682,0.00030684,7]
[326746756,1715297471194,-1048.96,0.00030684,6]
[326746757,1715297471206,-566.84,0.00030684,6]
[326746758,1715297471216,-407.58664671,0.00030684,6]
[326746759,1715297471225,-567.26,0.00030684,6]
[326746760,1715297471235,-1657.4,0.00030684,6]
[326746761,1715297471244,-954.46,0.00030684,6]
[326746762,1715297471253,-1041.5,0.00030684,6]
[326746763,1715297471264,-500.0,0.00030684,6]
[326746764,1715297471276,-500.0,0.00030684,6]
[326746765,1715297471285,-663.07,0.00030684,6]
[326746766,1715297471294,-831.97,0.00030684,6]
[326746767,1715297471306,-500.0,0.00030684,6]
[326746768,1715297471316,-800.82,0.00030684,6]
[326746769,1715297471326,-4798.37,0.00030684,6]
[326746770,1715297471336,-500.0,0.00030684,6]
[326746771,1715297471346,-2107.25,0.00030684,6]
[326746772,1715297471356,-2384.6,0.00030684,6]
[326746773,1715297471366,-716.47,0.00030684,6]
[326746774,1715297471375,-500.0,0.00030684,6]
[326746775,1715297471386,-8798.95,0.00030684,6]
[326746776,1715297471395,-500.0,0.00030684,6]
[326746777,1715297471404,-500.0,0.00030684,6]
[326746778,1715297471414,-909.4,0.00030684,6]
[326746779,1715297471423,-500.0,0.00030684,6]
[326746780,1715297471433,-500.0,0.00030684,6]
[326746781,1715297471442,-608.01163513,0.00030684,6]
[326746782,1715297471451,-885.27,0.00030684,6]
[326746783,1715297471460,-500.0,0.00030684,6]
[326746784,1715297471469,-500.0,0.00030684,6]
[326746785,1715297471478,-1009.76,0.00030684,6]
[326746786,1715297471568,-3506.97,0.00030684,6]
[326746787,1715297471578,-821.09,0.00030684,6]
[326746788,1715297471588,-2623.17,0.00030684,6]
[326746789,1715297471597,-1462.41,0.00030684,6]
[326746790,1715297471606,-241.5549224,0.00030684,6]
[326746791,1715297471615,-737.52,0.00030684,6]
[326746792,1715297471624,-932.66,0.00030684,6]
[326746793,1715297471633,-1357.62,0.00030684,6]
[326746794,1715297471643,-942.26,0.00030684,6]
[326746795,1715297471652,-151.0,0.00030684,7]
[326746796,1715297471661,-681.05,0.00030684,6]
[326746797,1715297471671,-500.0,0.00030684,6]
[326746798,1715297471680,-500.0,0.00030684,6]
[326746799,1715297471689,-500.0,0.00030684,6]
[326746800,1715297471698,-1012.3,0.00030684,6]
[326746801,1715297471707,-500.0,0.00030684,6]
[326746802,1715297471716,-4646.17,0.00030684,6]
[326746803,1715297471725,-1356.54,0.00030684,6]
[326746804,1715297471734,-500.0,0.00030684,6]
[326746805,1715297471743,-599.25,0.00030684,6]
[326746806,1715297471752,-42011.28,0.00030684,6]
[326746807,1715297471762,-500.0,0.00030684,6]
[326746808,1715297471772,-500.0,0.00030684,6]
[326746809,1715297471781,-500.0,0.00030684,6]
[326746810,1715297471789,-500.0,0.00030684,6]
[326746811,1715297471798,-807.72,0.00030684,6]
[326746812,1715297471808,-2159.75,0.00030684,6]
[326746813,1715297471819,-4089.52,0.00030684,6]
[326746814,1715297471830,-9288.02,0.00030684,6]
[326746815,1715297471841,-1792.62,0.00030684,6]
[326746816,1715297471851,-3984.95,0.00030684,6]
[326746817,1715297471861,-151.0,0.00030684,7]
[326746818,1715297471872,-2610.89,0.00030684,6]
[326746819,1715297471882,-2083.25,0.00030684,6]
[326746820,1715297471891,-1682.1,0.00030684,6]
[326746821,1715297471900,-500.0,0.00030684,6]
[326746822,1715297471909,-500.0,0.00030684,6]
[326746823,1715297471918,-661.9,0.00030684,6]
[326746824,1715297471927,-24129.0,0.00030684,6]
[326746825,1715297471937,-500.0,0.00030684,6]
[326746826,1715297471946,-4279.15,0.00030684,6]
[326746827,1715297471955,-8213.78,0.00030684,6]
[326746828,1715297471965,-151.0,0.00030684,7]
[326746829,1715297471974,-500.0,0.00030684,6]
[326746830,1715297471986,-500.0,0.00030684,6]
[326746831,1715297471996,-5534.17,0.00030684,6]
[326746832,1715297472005,-500.0,0.00030684,6]
[326746833,1715297472015,-2664.73,0.00030684,6]
[326746834,1715297472030,-1539.92,0.00030684,6]
[326746835,1715297472039,-3697.77,0.00030684,6]
[326746836,1715297472049,-1284.31,0.00030684,6]
[326746837,1715297472058,-525.3,0.00030684,6]
[326746838,1715297472068,-285.98076718,0.00030684,6]
[326746839,1715297472078,-822.54,0.00030684,6]
[326746840,1715297472088,-1445.3,0.00030684,6]
[326746841,1715297472098,-500.0,0.00030684,6]
[326746842,1715297472107,-877.33,0.00030684,6]
[326746843,1715297472117,-500.0,0.00030684,6]
[326746844,1715297472128,-1652.71,0.00030684,6]
[326746845,1715297472137,-786.29,0.00030684,6]
[326746846,1715297472146,-2865.81,0.00030684,6]
[326746847,1715297472156,-6791.83,0.00030684,6]
[326746848,1715297472165,-500.0,0.00030684,6]
[326746849,1715297472174,-2796.61,0.00030684,6]
[326746850,1715297472183,-7951.88,0.00030684,6]
[326746851,1715297472192,-1471.75,0.00030684,6]
[326746852,1715297472202,-607.05,0.00030684,6]
[326746853,1715297472211,-965.16,0.00030684,6]
[326746854,1715297472221,-895.97,0.00030684,6]
[326746855,1715297472230,-1044.27,0.00030684,6]
[326746856,1715297472241,-500.0,0.00030684,6]
[326746857,1715297472250,-500.0,0.00030684,6]
[326746858,1715297472259,-4048.03,0.00030684,6]
[326746859,1715297472269,-500.0,0.00030684,6]
[326746860,1715297472278,-3111.48,0.00030684,6]
[326746861,1715297472287,-3260.6,0.00030684,6]
[326746862,1715297472296,-479.10940715,0.00030684,6]
[326746863,1715297472306,-3705.69,0.00030684,6]
[326746864,1715297472315,-9821.44,0.00030684,6]
[326746865,1715297472324,-2000.5,0.00030684,6]
[326746866,1715297472335,-3885.62,0.00030684,6]
[326746867,1715297472345,-500.0,0.00030684,6]
[326746868,1715297472354,-1184.08,0.00030684,6]
[326746869,1715297472363,-500.0,0.00030684,6]
[326746870,1715297472372,-859.51,0.00030684,6]
[326746871,1715297472381,-3424.17,0.00030684,6]
[326746872,1715297472390,-3407.17,0.00030684,6]
[326746873,1715297472400,-500.0,0.00030684,6]
[326746874,1715297472409,-500.0,0.00030684,6]
[326746875,1715297472418,-500.0,0.00030684,6]
[326746876,1715297472429,-2905.29,0.00030684,6]
[326746877,1715297472439,-151.0,0.00030684,7]
[326746878,1715297472448,-1243.9,0.00030684,6]
[326746879,1715297472458,-4070.47,0.00030684,6]
[326746880,1715297472467,-17571.32,0.00030684,6]
[326746881,1715297472476,-500.0,0.00030684,6]
[326746882,1715297472485,-1205.11,0.00030684,6]
[326746883,1715297472495,-6018.88,0.00030684,6]
[326746884,1715297472504,-500.0,0.00030684,6]
[326746885,1715297472514,-7657.45,0.00030684,6]
[326746886,1715297472524,-1297.36,0.00030684,6]
[326746887,1715297472533,-500.0,0.00030684,6]
[326746888,1715297472543,-500.0,0.00030684,6]
[326746889,1715297472552,-761.01,0.00030684,6]
[326746890,1715297472561,-500.0,0.00030684,6]
[326746891,1715297472570,-1931.16,0.00030684,6]
[326746892,1715297472579,-500.0,0.00030684,6]
[326746893,1715297472588,-3820.67,0.00030684,6]
[326746894,1715297472598,-151.0,0.00030684,7]
[326746895,1715297472607,-11526.79,0.00030684,6]
[326746896,1715297472616,-515.62,0.00030684,6]
[326746897,1715297472625,-1422.49,0.00030684,6]
[326746898,1715297472634,-11636.5,0.00030684,6]
[326746899,1715297472644,-3441.16,0.00030684,6]
[326746900,1715297472653,-500.0,0.00030684,6]
[326746901,1715297472664,-203.192216,0.00030684,7]
[326746902,1715297472674,-1992.01,0.00030684,6]
[326746903,1715297472684,-958.86,0.00030684,6]
[326746904,1715297472693,-500.0,0.00030684,6]
[326746905,1715297472703,-500.0,0.00030684,6]
[326746906,1715297472713,-2698.47,0.00030684,6]
[326746907,1715297472723,-500.0,0.00030684,6]
[326746908,1715297472732,-2513.83,0.00030684,6]
[326746909,1715297472742,-2712.53,0.00030684,6]
[326746910,1715297472757,-3209.81,0.00030684,6]
[326746911,1715297472766,-1524.4,0.00030684,6]
[326746912,1715297472776,-771.73,0.00030684,6]
[326746913,1715297472785,-1891.66,0.00030684,6]
[326746914,1715297472794,-2089.49,0.00030684,6]
[326746915,1715297472803,-4269.46,0.00030684,6]
[326746916,1715297472812,-2084.1,0.00030684,6]
[326746917,1715297472822,-500.0,0.00030684,6]
[326746918,1715297472831,-500.0,0.00030684,6]
[326746919,1715297472840,-2378.27,0.00030684,6]
[326746920,1715297472849,-50507.86,0.00030684,6]
[326746921,1715297472858,-552.9,0.00030684,6]
[326746922,1715297472867,-15302.95,0.00030684,6]
[326746923,1715297472876,-500.0,0.00030684,6]
[326746924,1715297472885,-391.72883843,0.00030684,6]
[326746925,1715297472894,-500.0,0.00030684,6]
[326746926,1715297472903,-697.09,0.00030684,6]
[326746927,1715297472912,-509.79,0.00030684,6]
[326746928,1715297472922,-507.62,0.00030684,6]
[326746929,1715297472930,-1916.07,0.00030684,6]
[326746930,1715297472939,-1022.8,0.00030684,6]
[326746931,1715297472949,-1810.67,0.00030684,6]
[326746932,1715297472958,-827.45,0.00030684,6]
[326746933,1715297472968,-23960.66,0.00030684,6]
[326746934,1715297472977,-1548.17,0.00030684,6]
[326746935,1715297472986,-500.0,0.00030684,6]
[326746936,1715297472995,-776.59,0.00030684,6]
[326746937,1715297473004,-921.62,0.00030684,6]
[326746938,1715297473015,-831.85,0.00030684,6]
[326746939,1715297473026,-4201.18,0.00030684,6]
[326746940,1715297473039,-1268.68,0.00030684,6]
[326746941,1715297473049,-2661.61,0.00030684,6]
[326746942,1715297473059,-604.81,0.00030684,6]
[326746943,1715297473070,-883.21,0.00030684,6]
[326746944,1715297473080,-2870.33,0.00030684,6]
[326746945,1715297473089,-500.0,0.00030684,6]
[326746946,1715297473098,-2895.77,0.00030684,6]
[326746947,1715297473108,-2751.49,0.00030684,6]
[326746948,1715297473118,-1548.06,0.00030684,6]
[326746949,1715297473128,-2145.57,0.00030684,6]
[326746950,1715297473137,-4417.39,0.00030684,6]
[326746951,1715297473146,-500.0,0.00030684,6]
[326746952,1715297473156,-1081.29,0.00030684,6]
[326746953,1715297473165,-1059.72,0.00030684,6]
[326746954,1715297473174,-1560.23,0.00030684,6]
[326746955,1715297473183,-1385.06,0.00030684,6]
[326746956,1715297473195,-3573.92,0.00030684,6]
[326746957,1715297473205,-3784.22,0.00030684,6]
[326746958,1715297473215,-588.39,0.00030684,6]
[326746959,1715297473224,-20009.53,0.00030684,6]
[326746960,1715297473233,-826.85,0.00030684,6]
[326746961,1715297473242,-2138.97,0.00030684,6]
[326746962,1715297473252,-1271.3,0.00030684,6]
[326746963,1715297473261,-2995.03,0.00030684,6]
[326746964,1715297473272,-954.9,0.00030684,6]
[326746965,1715297473280,-3258.26,0.00030684,6]
[326746966,1715297473290,-1150.69,0.00030684,6]
[326746967,1715297473299,-1439.66,0.00030684,6]
[326746968,1715297473309,-3200.62,0.00030684,6]
[326746969,1715297473319,-500.0,0.00030684,6]
[326746970,1715297473328,-653.8,0.00030684,6]
[326746971,1715297473338,-851.94,0.00030684,6]
[326746972,1715297473347,-500.0,0.00030684,6]
[326746973,1715297473357,-1486.95,0.00030684,6]
[326746974,1715297473366,-910.6,0.00030684,6]
[326746975,1715297473376,-1343.14,0.00030684,6]
[326746976,1715297473385,-11644.59,0.00030684,6]
[326746977,1715297473395,-6123.7,0.00030684,6]
[326746978,1715297473404,-8892.3,0.00030684,6]
[326746979,1715297473413,-2737.43,0.00030684,6]
[326746980,1715297473423,-3321.03,0.00030684,6]
[326746981,1715297473432,-1488.49,0.00030684,6]
[326746982,1715297473442,-4295.29,0.00030684,6]
[326746983,1715297473451,-500.0,0.00030684,6]
[326746984,1715297473461,-500.0,0.00030684,6]
[326746985,1715297473471,-1794.62,0.00030684,6]
[326746986,1715297473480,-500.0,0.00030684,6]
[326746987,1715297473489,-500.0,0.00030684,6]
[326746988,1715297473498,-1745.83,0.00030684,6]
[326746989,1715297473508,-500.0,0.00030684,6]
[326746990,1715297473518,-6047.49,0.00030684,6]
[326746991,1715297473528,-3941.16,0.00030684,6]
[326746992,1715297473537,-564.56,0.00030684,6]
[326746993,1715297473547,-556.15,0.00030684,6]
[326746994,1715297473556,-500.0,0.00030684,6]
[326746995,1715297473566,-525.22,0.00030684,6]
[326746996,1715297473575,-2148.08,0.00030684,6]
[326746997,1715297473585,-3777.52,0.00030684,6]
[326746998,1715297473595,-2104.13,0.00030684,6]
[326746999,1715297473604,-500.0,0.00030684,6]
[326747000,1715297473614,-4559.13,0.00030684,6]
[326747001,1715297473623,-3083.73,0.00030684,6]
[326747002,1715297473633,-500.0,0.00030684,6]
[326747003,1715297473643,-2853.51,0.00030684,6]
[326747004,1715297473653,-2549.11,0.00030684,6]
[326747005,1715297473662,-793.12,0.00030684,6]
[326747006,1715297473672,-708.34,0.00030684,6]
[326747007,1715297473682,-500.0,0.00030684,6]
[326747008,1715297473691,-3052.4,0.00030684,6]
[326747009,1715297473701,-500.0,0.00030684,6]
[326747010,1715297473711,-500.0,0.00030684,6]
[326747011,1715297473721,-500.0,0.00030684,6]
[326747012,1715297473730,-1377.13,0.00030684,6]
[326747013,1715297473740,-801.06,0.00030684,6]
[326747014,1715297473750,-529.455136,0.00030684,7]
[326747015,1715297473759,-3880.41,0.00030684,6]
[326747016,1715297473770,-500.0,0.00030684,6]
[326747017,1715297473779,-668.46,0.00030684,6]
[326747018,1715297473789,-8984.56,0.00030684,6]
[326747019,1715297473799,-3733.89,0.00030684,6]
[326747020,1715297473808,-529.455136,0.00030684,7]
[326747021,1715297473818,-5522.35,0.00030684,6]
[326747022,1715297473828,-500.0,0.00030684,6]
[326747023,1715297473838,-514.01185172,0.00030684,6]
[326747024,1715297473847,-500.0,0.00030684,6]
[326747025,1715297473858,-5000.0,0.00030684,6]
[326747026,1715297473867,-2141.08,0.00030684,6]
[326747027,1715297473877,-500.0,0.00030684,6]
[326747028,1715297473887,-982.37,0.00030684,6]
[326747029,1715297473896,-500.0,0.00030684,6]
[326747030,1715297473906,-500.0,0.00030684,6]
[326747031,1715297473915,-500.0,0.00030684,6]
[326747032,1715297473925,-500.0,0.00030684,6]
[326747033,1715297473934,-5495.97,0.00030684,6]
[326747034,1715297473944,-2161.21,0.00030684,6]
[326747035,1715297473953,-2823.7,0.00030684,6]
[326747036,1715297473963,-2898.53,0.00030684,6]
[326747037,1715297473972,-3562.78,0.00030684,6]
[326747038,1715297473981,-173.213968,0.00030684,7]
[326747039,1715297473991,-953.67,0.00030684,2]
[326747040,1715297474001,-671.81,0.00030684,6]
[326747041,1715297474011,-5243.76,0.00030684,6]
[326747042,1715297474022,-1489.35,0.00030684,6]
[326747043,1715297474034,-173.213968,0.00030684,7]
[326747044,1715297474044,-829.6,0.00030684,6]
[326747045,1715297474054,-5954.43,0.00030684,6]
[326747046,1715297474064,-950.25,0.00030684,6]
[326747047,1715297474073,-500.0,0.00030684,6]
[326747048,1715297474083,-1331.07,0.00030684,6]
[326747049,1715297474093,-500.0,0.00030684,6]
[326747050,1715297474102,-4151.56,0.00030684,6]
[326747051,1715297474112,-3540.19,0.00030684,6]
[326747052,1715297474122,-2417.55,0.00030684,6]
[326747053,1715297474133,-2044.42,0.00030684,6]
[326747054,1715297474142,-544.85,0.00030684,6]
[326747055,1715297474152,-3592.67,0.00030684,6]
[326747056,1715297474162,-500.0,0.00030684,6]
[326747057,1715297474173,-679.46,0.00030684,6]
[326747058,1715297474184,-553.68,0.00030684,6]
[326747059,1715297474193,-1001.19,0.00030684,6]
[326747060,1715297474204,-1776.59,0.00030684,6]
[326747061,1715297474214,-151.0,0.00030684,7]
[326747062,1715297474224,-9015.09,0.00030684,6]
[326747063,1715297474235,-2032.37,0.00030684,6]
[326747064,1715297474244,-2006.08,0.00030684,6]
[326747065,1715297474253,-3304.47,0.00030684,6]
[326747066,1715297474263,-648.89,0.00030684,6]
[326747067,1715297474273,-1587.1,0.00030684,6]
[326747068,1715297474282,-500.0,0.00030684,6]
[326747069,1715297474292,-500.0,0.00030684,6]
[326747070,1715297474302,-526.4,0.00030684,6]
[326747071,1715297474312,-730.89,0.00030684,6]
[326747072,1715297474321,-881.2,0.00030684,6]
[326747073,1715297474330,-1138.73,0.00030684,6]
[326747074,1715297474339,-2476.24,0.00030684,6]
[326747075,1715297474350,-1489.69,0.00030684,6]
[326747076,1715297474360,-629.29,0.00030684,6]
[326747077,1715297474369,-1022.1,0.00030684,6]
[326747078,1715297474379,-607.43,0.00030684,6]
[326747079,1715297474389,-3868.06,0.00030684,6]
[326747080,1715297474398,-500.0,0.00030684,6]
[326747081,1715297474407,-856.6,0.00030684,6]
[326747082,1715297474417,-792.83,0.00030684,6]
[326747083,1715297474427,-33230.34,0.00030684,6]
[326747084,1715297474438,-500.0,0.00030684,6]
[326747085,1715297474447,-2849.26,0.00030684,6]
[326747086,1715297474457,-1205.19,0.00030684,6]
[326747087,1715297474468,-5048.73,0.00030684,6]
[326747088,1715297474478,-517.84,0.00030684,6]
[326747089,1715297474488,-8710.02,0.00030684,6]
[326747090,1715297474498,-1250.08,0.00030684,6]
[326747091,1715297474508,-500.0,0.00030684,6]
[326747092,1715297474517,-1225.18,0.00030684,2]
[326747093,1715297474528,-507.95745,0.00030684,7]
[326747094,1715297474538,-538.5,0.00030684,6]
[326747095,1715297474551,-507.95745,0.00030684,7]
[326747096,1715297474561,-10603.2,0.00030684,6]
[326747097,1715297474570,-155.127514,0.00030684,7]
[326747098,1715297474580,-3027.71,0.00030684,6]
[326747099,1715297474591,-500.0,0.00030684,6]
[326747100,1715297474601,-1271.84,0.00030684,6]
[326747101,1715297474611,-536.78,0.00030684,6]
[326747102,1715297474622,-500.0,0.00030684,6]
[326747103,1715297474632,-1554.96,0.00030684,6]
[326747104,1715297474642,-500.0,0.00030684,6]
[326747105,1715297474652,-500.0,0.00030684,6]
[326747106,1715297474662,-156.44560213,0.00030684,2]
[326747107,1715297474671,-150.0,0.00030686,2]
[326747108,1715297474682,-150.0,0.00030686,2]
[326747109,1715297474691,-150.0,0.00030693,2]
[326747110,1715297474701,-300.0,0.00030697,2]
[326747111,1715297474710,-150.0,0.00030697,2]
[326747112,1715297474720,-343.0,0.000307,3]
[326747113,1715297474730,-150.0,0.00030706,2]
[326747114,1715297474740,-150.0,0.00030707,2]
[326747115,1715297474750,-150.0,0.00030709,2]
[326747116,1715297474760,-150.0,0.00030715,2]
[326747117,1715297474771,-150.0,0.00030716,2]
[326747118,1715297474781,-150.0,0.00030719,2]
[326747119,1715297474791,-150.0,0.00030722,2]
[326747120,1715297474801,-150.0,0.00030724,2]
[326747121,1715297474812,-150.0,0.00030728,2]
[326747122,1715297474821,-1965.02816181,0.00030733,2]
[326747123,1715297474831,-150.0,0.00030748,2]
[326747124,1715297474841,-150.0,0.00030749,2]
[326747125,1715297474851,-150.0,0.00030753,2]
[326747126,1715297474862,-150.0,0.00030759,2]
[326747127,1715297474872,-150.0,0.00030762,2]
[326747128,1715297474883,-150.0,0.00030764,2]
[326747129,1715297474893,-150.0,0.00030766,2]
[326747130,1715297474903,-150.0,0.00030769,2]
[326747131,1715297474913,-207.66695698,0.00030775,2]
[326747132,1715297474922,-5860.22628477,0.00030775,2]
[326747133,1715297474932,-150.0,0.00030775,2]
[326747134,1715297474944,-12132.282602,0.00030787,2]
[326747135,1715297474953,-735.4374218,0.00030789,2]
[326747136,1715297474963,-29043.9149512,0.00030789,2]
[326747137,1715297474973,-26257.8805397,0.00030789,2]
[326747138,1715297474983,-374.12100649,0.00030808,2]
[326747139,1715297474993,-35222.9375157,0.00030816,2]
[326747140,1715297475003,-37040.9919129,0.00030816,2]
[326747141,1715297475014,-6447.4812379,0.00030837,2]
[326747142,1715297475024,-199.75971536,0.00030858,2]
[326747143,1715297475038,-180.24990319,0.00030858,2]
[326747144,1715297475052,-187.0,0.0003087,15]
[326747145,1715297475062,-159.80777229,0.0003088,2]
[326747146,1715297475072,-187.0,0.0003088,15]
[326747147,1715297475084,-187.0,0.0003089,15]
[326747148,1715297475094,-1003.58,0.000309,2]
[326747149,1715297475104,-307.76,0.000309,2]
[326747150,1715297475116,-150.0,0.000309,2]
[326747151,1715297475126,-500.0,0.00030958,7]
[326747152,1715297475136,-716.53,0.00030958,7]
[326747153,1715297475146,-500.0,0.00030958,7]
[326747154,1715297475156,-500.0,0.00030958,7]
[326747155,1715297475166,-789.71,0.00030958,7]
[326747156,1715297475179,-500.0,0.00030958,2]
[326747157,1715297475189,-500.0,0.00030958,7]
[326747158,1715297475199,-994.1,0.00030958,7]
[326747159,1715297475209,-500.0,0.00030958,7]
[326747160,1715297475218,-500.0,0.00030958,7]
[326747161,1715297475228,-804.46,0.00030958,7]
[326747162,1715297475238,-513.05178757,0.00030958,7]
[326747163,1715297475247,-500.0,0.00030958,7]
[326747164,1715297475257,-580.48,0.00030958,7]
[326747165,1715297475267,-500.0,0.00030958,7]
[326747166,1715297475278,-500.0,0.00030958,7]
[326747167,1715297475288,-500.0,0.00030958,7]
[326747168,1715297475298,-766.08,0.00030958,7]
[326747169,1715297475308,-663.83,0.00030958,7]
[326747170,1715297475318,-500.0,0.00030958,7]
[326747171,1715297475328,-501.51,0.00030958,7]
[326747172,1715297475338,-500.0,0.00030958,7]
[326747173,1715297475348,-500.0,0.00030958,7]
[326747174,1715297475357,-500.75,0.00030958,7]
[326747175,1715297475367,-500.0,0.00030958,7]
[326747176,1715297475377,-500.0,0.00030958,7]
[326747177,1715297475386,-500.0,0.00030958,7]
[326747178,1715297475396,-500.0,0.00030958,7]
[326747179,1715297475406,-500.0,0.00030958,7]
[326747180,1715297475416,-576.24,0.00030958,7]
[326747181,1715297475426,-662.83,0.00030958,7]
[326747182,1715297475436,-889.58,0.00030958,7]
[326747183,1715297475446,-500.0,0.00030958,7]
[326747184,1715297475455,-500.0,0.00030958,7]
[326747185,1715297475465,-500.0,0.00030958,7]
[326747186,1715297475475,-500.0,0.00030958,7]
[326747187,1715297475484,-842.01,0.00030958,7]
[326747188,1715297475495,-500.0,0.00030958,7]
[326747189,1715297475505,-978.16,0.00030958,7]
[326747190,1715297475515,-577.33,0.00030958,7]
[326747191,1715297475526,-500.0,0.00030958,7]
[326747192,1715297475536,-734.77,0.00030958,7]
[326747193,1715297475546,-500.0,0.00030958,7]
[326747194,1715297475556,-898.79,0.00030958,7]
[326747195,1715297475566,-500.0,0.00030958,7]
[326747196,1715297475575,-500.0,0.00030958,7]
[326747197,1715297475585,-562.56,0.00030958,7]
[326747198,1715297475595,-790.18,0.00030958,7]
[326747199,1715297475604,-500.0,0.00030958,7]
[326747200,1715297475614,-500.0,0.00030958,7]